bitfinex-derivatives/quotes_SOLF0:USTF0_20260311
["timestamp","ask_amount","ask_price","bid_price","bid_amount"]
[1773234066399,2.93596896,85.137,85.093,6.08556202]
[1773234066701,2.5733679,85.12,85.093,6.08556202]
[1773234067002,2.5733679,85.11,85.08,6.08556202]
[1773234067602,2.5733679,85.11,85.071,10.578]
[1773234068295,2.5733679,85.11,85.073,10.578]
[1773234068692,2.5733679,85.11,85.074,6.12230331]
[1773234068898,2.5733679,85.12,85.078,6.12230331]
[1773234070303,2.5733679,85.12,85.039,21.165]
[1773234070304,2.5733679,85.12,85.086,6.11727033]
[1773234070703,2.5733679,85.15,85.086,6.11727033]
[1773234070897,2.93600393,85.149,85.086,6.11727033]
[1773234071202,2.93600393,85.148,85.086,6.11727033]
[1773234071398,2.93600393,85.147,85.086,6.11727033]
[1773234071605,2.93600393,85.146,85.086,6.11727033]
[1773234071796,2.93600393,85.145,85.086,6.11727033]
[1773234071995,2.93600393,85.144,85.086,6.11727033]
[1773234072305,2.93600393,85.143,85.109,10.574]
[1773234072500,2.5733679,85.15,85.109,16.69505023]
[1773234072805,2.93558662,85.149,85.109,16.69505023]
[1773234073004,2.93558662,85.148,85.109,16.69505023]
[1773234073206,2.93558662,85.147,85.109,16.69505023]
[1773234073406,2.93558662,85.146,85.109,16.69505023]
[1773234073606,2.93558662,85.145,85.109,16.69505023]
[1773234073807,2.93558662,85.144,85.109,16.69505023]
[1773234074003,2.93558662,85.143,85.109,16.69505023]
[1773234074200,2.93558662,85.142,85.109,16.69505023]
[1773234074505,2.5733679,85.15,85.109,16.69505023]
[1773234074700,2.93558603,85.149,85.109,16.69505023]
[1773234074901,2.93558603,85.148,85.11,6.14406938]
[1773234075207,2.5733679,85.15,85.11,6.14406938]
[1773234076103,13.1423679,85.15,85.11,6.14406938]
[1773234076305,2.93540789,85.149,85.11,6.14406938]
[1773234076503,13.1423679,85.15,85.11,6.14406938]
[1773234079111,2.5733679,85.15,85.113,6.15292276]
[1773234079504,10.568,85.157,85.113,6.15292276]
[1773234079810,2.93516323,85.156,85.117,6.23038557]
[1773234080005,2.93516323,85.155,85.117,6.23038557]
[1773234080309,10.567,85.165,85.117,6.23038557]
[1773234080514,10.567,85.165,85.126,6.23038557]
[1773234080515,2.93510548,85.164,85.126,6.23038557]
[1773234080708,2.93510548,85.163,85.126,6.23038557]
[1773234080908,2.93510548,85.162,85.126,6.23038557]
[1773234081110,10.567,85.165,85.126,6.23038557]
[1773234081315,2.93490236,85.164,85.126,6.23038557]
[1773234081513,10.567,85.162,85.126,6.23038557]
[1773234081712,2.93490236,85.161,85.126,6.23038557]
[1773234081915,10.567,85.162,85.126,6.23038557]
[1773234082115,2.93490198,85.161,85.126,6.23038557]
[1773234082414,2.5733679,85.16,85.13,16.8037785]
[1773234082614,2.5733679,85.16,85.13,6.2327785]
[1773234083114,10.566,85.168,85.13,6.2327785]
[1773234083316,2.93469978,85.167,85.13,6.2327785]
[1773234083508,2.93469978,85.166,85.13,6.2327785]
[1773234083709,2.93469978,85.165,85.13,6.2327785]
[1773234083916,2.93479536,85.164,85.13,6.2327785]
[1773234084114,2.93479536,85.163,85.13,6.2327785]
[1773234084308,2.93479536,85.162,85.131,10.571]
[1773234084514,2.93479536,85.161,85.131,16.79240009]
[1773234084715,2.5733679,85.17,85.132,6.22140009]
[1773234085017,2.93489438,85.169,85.132,6.22140009]
[1773234085208,10.565,85.175,85.132,6.22140009]
[1773234085415,2.93463719,85.174,85.134,6.22140009]
[1773234085715,2.93463719,85.173,85.134,6.22140009]
[1773234085917,2.93463719,85.172,85.134,6.22140009]
[1773234086116,2.93463719,85.171,85.134,6.22140009]
[1773234086416,2.93463719,85.17,85.134,6.22140009]
[1773234086616,10.565,85.175,85.134,6.22140009]
[1773234086817,2.93463588,85.174,85.134,6.22140009]
[1773234087019,2.93463588,85.173,85.134,6.22140009]
[1773234087214,2.93463588,85.172,85.134,6.22140009]
[1773234087414,2.93463588,85.171,85.136,6.22154232]
[1773234087718,2.93463588,85.17,85.136,6.22154232]
[1773234087913,10.565,85.175,85.136,6.22154232]
[1773234088219,2.93463372,85.174,85.136,6.22154232]
[1773234088413,2.93463372,85.173,85.136,6.22154232]
[1773234088614,2.93463372,85.172,85.136,6.22154232]
[1773234088912,2.93463372,85.171,85.136,6.22154232]
[1773234089117,2.93463372,85.17,85.136,6.22154232]
[1773234089414,10.565,85.175,85.136,6.22154232]
[1773234089608,10.566,85.173,85.136,6.22154232]
[1773234089811,2.93463391,85.172,85.136,6.22154232]
[1773234090006,10.566,85.169,85.136,6.22154232]
[1773234090214,2.5733679,85.18,85.136,6.22154232]
[1773234090513,2.5733679,85.17,85.121,6.22339028]
[1773234090718,10.566,85.168,85.122,6.22339028]
[1773234092216,10.566,85.168,85.133,6.21196469]
[1773234095313,10.567,85.165,85.133,6.21196469]
[1773234096623,2.93483756,85.164,85.133,6.21196469]
[1773234096821,2.93483756,85.163,85.133,6.21196469]
[1773234097022,2.93483756,85.162,85.133,6.21196469]
[1773234097221,2.5733679,85.17,85.133,6.21196469]
[1773234097222,2.93483756,85.161,85.133,6.21196469]
[1773234097419,10.566,85.168,85.133,6.21196469]
[1773234098027,10.567,85.165,85.133,6.21196469]
[1773234099227,2.93473829,85.164,85.133,6.21196469]
[1773234099430,10.567,85.165,85.133,6.21196469]
[1773234100227,10.566,85.169,85.133,16.78296469]
[1773234100428,2.93463849,85.168,85.133,16.78296469]
[1773234100630,2.5733679,85.18,85.133,6.21196469]
[1773234100829,2.93463774,85.179,85.133,6.21196469]
[1773234101031,2.5733679,85.17,85.133,6.21196469]
[1773234101231,2.93463774,85.169,85.133,6.21196469]
[1773234101436,2.93463774,85.168,85.133,6.21196469]
[1773234101637,10.567,85.166,85.133,6.21196469]
[1773234102233,2.5733679,85.17,85.136,10.57]
[1773234102437,2.93463557,85.169,85.136,10.57]
[1773234102638,2.93463557,85.168,85.136,10.57]
[1773234102938,2.93463557,85.167,85.136,10.57]
[1773234103140,10.566,85.169,85.136,10.57]
[1773234103338,2.93463463,85.168,85.137,6.19695754]
[1773234103638,2.93463463,85.167,85.137,6.19695754]
[1773234103834,21.124,85.205,85.142,6.19676437]
[1773234103835,2.5733679,85.19,85.142,6.19676437]
[1773234104040,2.93442952,85.189,85.142,6.19676437]
[1773234104236,2.93442952,85.188,85.142,6.19676437]
[1773234104540,2.93442952,85.187,85.142,6.19676437]
[1773234104834,2.5733679,85.16,85.121,6.19676437]
[1773234105031,2.93442952,85.159,85.121,6.19676437]
[1773234105234,2.93442952,85.158,85.121,6.19676437]
[1773234105437,2.5733679,85.17,85.121,6.19676437]
[1773234105634,10.567,85.165,85.128,6.21373019]
[1773234106440,10.567,85.165,85.129,16.78473019]
[1773234106942,10.567,85.165,85.129,6.21373019]
[1773234107239,10.567,85.16,85.129,6.21373019]
[1773234107439,2.93489821,85.159,85.129,6.21373019]
[1773234107641,2.93489821,85.158,85.129,6.21373019]
[1773234107838,2.5733679,85.17,85.129,6.21373019]
[1773234108033,2.93489839,85.169,85.129,6.21373019]
[1773234108238,10.568,85.153,85.116,6.21403134]
[1773234109242,10.569,85.147,85.116,6.21403134]
[1773234110145,10.568,85.154,85.116,6.21403134]
[1773234110346,2.93511982,85.153,85.116,6.21403134]
[1773234110543,2.93511982,85.152,85.116,6.21403134]
[1773234110747,2.93511982,85.151,85.116,6.21403134]
[1773234110950,2.93511982,85.15,85.116,6.21403134]
[1773234111240,2.93511982,85.149,85.116,6.21403134]
[1773234111447,10.568,85.151,85.116,6.21403134]
[1773234111743,2.5733679,85.13,85.091,6.1748095]
[1773234111942,10.573,85.116,85.061,6.1748095]
[1773234113348,10.573,85.116,85.075,6.1748095]
[1773234114147,2.5733679,85.11,85.075,6.1748095]
[1773234115542,2.57689409,85.11,85.075,6.1748095]
[1773234115747,2.57689409,85.11,85.078,6.13059144]
[1773234116045,10.573,85.117,85.078,6.13059144]
[1773234118742,10.574,85.109,85.078,6.13059144]
[1773234120146,2.57689409,85.11,85.078,6.13059144]
[1773234120347,10.573,85.117,85.078,6.13059144]
[1773234121554,2.57689409,85.1,85.066,6.15304295]
[1773234122355,21.136,85.155,85.066,6.15304295]
[1773234122356,2.57689409,85.12,85.066,6.15304295]
[1773234123455,10.572,85.119,85.076,6.15304295]
[1773234124449,10.572,85.119,85.079,16.77008364]
[1773234124656,10.572,85.119,85.08,6.19308364]
[1773234125657,2.57689409,85.12,85.082,6.2320031]
[1773234127260,2.57689409,85.11,85.082,6.2320031]
[1773234127460,2.57689409,85.12,85.082,6.2320031]
[1773234127661,2.57689409,85.12,85.084,6.21620514]
[1773234128358,2.57689409,85.12,85.086,16.79220514]
[1773234128558,2.57689409,85.12,85.087,6.21620514]
[1773234128753,2.57689409,85.13,85.087,6.21620514]
[1773234129159,10.571,85.128,85.091,6.21620514]
[1773234132062,10.571,85.135,85.093,6.22521556]
[1773234132368,2.57689409,85.14,85.093,6.22521556]
[1773234133166,10.57,85.137,85.102,6.22521556]
[1773234133366,2.57689409,85.16,85.102,6.22521556]
[1773234133569,2.57689409,85.15,85.102,6.22521556]
[1773234134468,2.57689409,85.16,85.104,6.22420583]
[1773234134669,2.57689409,85.15,85.104,6.22420583]
[1773234135369,2.57689409,85.15,85.113,6.22420583]
[1773234137870,10.568,85.154,85.113,6.22420583]
[1773234139070,10.568,85.154,85.118,6.22274491]
[1773234139666,10.569,85.148,85.118,6.22274491]
[1773234140067,10.569,85.148,85.106,6.21932926]
[1773234140474,10.57,85.141,85.106,6.21932926]
[1773234142776,2.57689409,85.14,85.106,6.21932926]
[1773234143070,2.57689409,85.13,85.094,6.21939653]
[1773234143270,2.57689409,85.14,85.094,6.21939653]
[1773234143473,10.571,85.135,85.094,6.21939653]
[1773234144373,10.571,85.135,85.096,6.21535241]
[1773234144875,10.571,85.128,85.096,6.21535241]
[1773234145168,21.132,85.172,85.096,6.21535241]
[1773234145169,2.57689409,85.13,85.096,6.21535241]
[1773234146365,10.571,85.127,85.096,6.21535241]
[1773234146773,2.57689409,85.14,85.096,6.21535241]
[1773234146974,2.93554911,85.139,85.096,6.21535241]
[1773234147278,10.571,85.134,85.096,6.21535241]
[1773234147474,2.57689409,85.13,85.096,6.21535241]
[1773234147674,10.571,85.134,85.096,6.21535241]
[1773234149377,10.571,85.134,85.098,6.20914936]
[1773234150381,2.57689409,85.15,85.104,6.21121668]
[1773234150681,2.93546647,85.149,85.104,6.21121668]
[1773234150884,2.93546647,85.148,85.104,6.21121668]
[1773234151072,2.93546647,85.147,85.104,6.21121668]
[1773234151275,2.93546647,85.146,85.104,6.21121668]
[1773234151482,2.57689409,85.14,85.104,6.21121668]
[1773234151881,10.57,85.138,85.104,6.21121668]
[1773234153387,2.93550619,85.137,85.104,6.21121668]
[1773234153586,10.57,85.138,85.104,6.21121668]
[1773234153887,2.9355868,85.137,85.104,6.21121668]
[1773234154083,10.57,85.138,85.104,6.21121668]
[1773234154288,2.93550676,85.137,85.104,6.21121668]
[1773234154487,10.57,85.138,85.104,6.21121668]
[1773234154786,2.93550676,85.137,85.104,6.21121668]
[1773234155088,10.57,85.138,85.104,6.21121668]
[1773234155287,2.93550676,85.137,85.104,6.21121668]
[1773234155489,2.93550676,85.136,85.104,6.21121668]
[1773234155787,10.57,85.138,85.104,6.21121668]
[1773234155987,2.93550676,85.137,85.104,6.21121668]
[1773234156287,2.93550676,85.136,85.104,6.21121668]
[1773234156589,2.93550676,85.135,85.104,6.21121668]
[1773234156788,10.57,85.138,85.104,6.21121668]
[1773234156989,2.93550676,85.137,85.104,6.21121668]
[1773234157288,10.57,85.138,85.104,6.21121668]
[1773234157289,2.93550672,85.136,85.104,6.21121668]
[1773234157482,2.93550672,85.136,85.065,21.4351063]
[1773234157483,2.57689409,85.13,85.091,6.2050902]
[1773234157690,2.57689409,85.12,85.091,6.2050902]
[1773234158090,2.93589481,85.119,85.061,6.2051408]
[1773234158299,10.573,85.117,85.08,6.2051408]
[1773234158496,2.93589481,85.116,85.08,6.2051408]
[1773234158697,2.93589481,85.115,85.08,6.2051408]
[1773234158899,10.573,85.112,85.08,6.2051408]
[1773234159099,2.57689409,85.12,85.08,6.2051408]
[1773234159298,2.57689409,85.11,85.08,6.2051408]
[1773234160598,10.95766568,85.15,85.08,6.2051408]
[1773234160599,2.57689409,85.13,85.08,6.2051408]
[1773234160902,2.93614495,85.129,85.08,6.2051408]
[1773234161096,2.57689409,85.12,85.08,6.2051408]
[1773234161292,2.57689409,85.12,85.087,10.576]
[1773234161499,2.57689409,85.12,85.087,6.20166882]
[1773234162192,10.573,85.118,85.087,6.20166882]
[1773234162396,2.93619627,85.117,85.087,6.20166882]
[1773234162598,2.93619627,85.116,85.087,6.20166882]
[1773234162797,2.93619627,85.115,85.087,6.20166882]
[1773234163001,10.573,85.118,85.087,6.20166882]
[1773234163203,2.93619666,85.117,85.087,6.20166882]
[1773234163403,2.93619666,85.116,85.087,6.20166882]
[1773234163705,13.50919666,85.115,85.087,6.20166882]
[1773234163904,10.573,85.115,85.087,6.20166882]
[1773234168504,2.57689409,85.11,85.078,10.577]
[1773234168904,2.57689409,85.11,85.076,6.21047634]
[1773234171599,2.57689409,85.1,85.076,6.21047634]
[1773234171804,2.93691763,85.099,85.064,6.2194319]
[1773234172105,2.93691763,85.098,85.064,6.2194319]
[1773234172305,2.57689409,85.1,85.064,6.2194319]
[1773234172306,2.93691763,85.097,85.064,6.2194319]
[1773234172496,2.57689409,85.1,85.064,6.2194319]
[1773234172700,2.93688423,85.099,85.064,6.2194319]
[1773234172900,2.93688423,85.098,85.064,6.2194319]
[1773234173101,2.93688423,85.097,85.064,6.2194319]
[1773234173297,2.57689409,85.1,85.064,6.2194319]
[1773234173504,2.57689409,85.1,85.04,2.57689409]
[1773234173505,2.9368437,85.099,85.066,6.2194319]
[1773234173806,2.9368437,85.098,85.066,6.2194319]
[1773234174106,2.57689409,85.1,85.066,6.2194319]
[1773234174296,2.93684105,85.099,85.066,6.2194319]
[1773234174498,2.57689409,85.1,85.066,6.2194319]
[1773234175701,2.57762583,85.1,85.066,6.2194319]
[1773234176301,2.57762583,85.1,85.068,6.25123342]
[1773234177003,2.57762583,85.13,85.071,6.25123342]
[1773234177203,2.93606976,85.129,85.071,6.25123342]
[1773234177405,2.57762583,85.13,85.071,6.25123342]
[1773234177406,2.93606976,85.128,85.071,6.25123342]
[1773234177602,2.93606976,85.127,85.071,6.25123342]
[1773234177807,2.93606976,85.126,85.071,6.25123342]
[1773234178103,2.93606976,85.125,85.071,6.25123342]
[1773234178302,2.57762583,85.14,85.08,2.57762583]
[1773234178498,10.571,85.128,85.09,6.2638225]
[1773234178802,2.93586651,85.127,85.09,6.2638225]
[1773234179003,2.93586651,85.126,85.09,6.2638225]
[1773234179199,10.571,85.128,85.09,6.2638225]
[1773234179200,2.93586651,85.125,85.09,6.2638225]
[1773234179404,10.571,85.128,85.09,6.2638225]
[1773234179599,2.93586632,85.127,85.09,6.2638225]
[1773234179806,2.93586632,85.126,85.09,6.2638225]
[1773234180000,2.93586632,85.125,85.09,6.2638225]
[1773234180205,10.571,85.128,85.09,6.2638225]
[1773234180500,2.93586651,85.127,85.09,6.2638225]
[1773234180704,2.93586651,85.126,85.09,6.2638225]
[1773234180998,2.93586651,85.125,85.09,6.2638225]
[1773234181200,2.93586651,85.124,85.09,6.2638225]
[1773234181411,10.571,85.128,85.09,6.2638225]
[1773234181606,2.93590682,85.127,85.09,6.2638225]
[1773234181807,2.93590682,85.126,85.09,6.2638225]
[1773234182007,8.82183409,85.157,85.095,6.25279611]
[1773234182207,2.57762583,85.15,85.095,6.25279611]
[1773234182407,2.93546929,85.149,85.095,6.25279611]
[1773234182604,2.93546929,85.148,85.095,6.25279611]
[1773234182812,2.93546929,85.147,85.095,6.25279611]
[1773234183010,13.50446929,85.146,85.108,6.25279611]
[1773234183312,2.93546929,85.145,85.108,6.25279611]
[1773234183509,2.93546929,85.144,85.108,6.25279611]
[1773234183710,2.93546929,85.143,85.108,6.25279611]
[1773234184011,10.57,85.141,85.108,6.25279611]
[1773234184209,2.93546929,85.14,85.108,6.25279611]
[1773234184410,2.93546929,85.139,85.108,6.25279611]
[1773234184611,2.93546929,85.138,85.108,6.25279611]
[1773234184804,2.93550175,85.137,85.108,6.25279611]
[1773234185003,10.57,85.141,85.108,6.25279611]
[1773234185211,2.93546145,85.14,85.108,6.25279611]
[1773234185407,2.93546145,85.139,85.108,6.25279611]
[1773234185604,10.57,85.137,85.108,6.25279611]
[1773234187213,10.57,85.137,85.095,6.29492832]
[1773234187508,2.93550557,85.136,85.095,6.29492832]
[1773234187713,10.57,85.137,85.095,6.29492832]
[1773234187912,2.93550595,85.136,85.095,6.29492832]
[1773234188115,10.57,85.137,85.095,6.29492832]
[1773234188415,10.57,85.137,85.098,6.29657205]
[1773234188611,21.129,85.185,85.098,6.29657205]
[1773234188612,10.569,85.147,85.098,6.29657205]
[1773234188818,2.57762583,85.17,85.118,6.29657205]
[1773234189015,2.93500384,85.169,85.121,6.29657205]
[1773234189311,2.57762583,85.18,85.121,6.29657205]
[1773234189312,2.93500384,85.168,85.121,6.29657205]
[1773234189512,2.93500384,85.167,85.121,6.29657205]
[1773234189714,2.93500384,85.167,85.092,21.4351063]
[1773234189715,2.93500384,85.166,85.127,6.29391764]
[1773234189908,2.93500384,85.165,85.127,6.29391764]
[1773234190110,2.93500384,85.164,85.127,6.29391764]
[1773234190415,10.565,85.177,85.137,6.29391764]
[1773234191317,10.565,85.177,85.138,10.57]
[1773234192116,10.565,85.177,85.139,6.28246018]
[1773234195015,10.564,85.184,85.141,6.28159906]
[1773234196216,10.566,85.17,85.141,6.28159906]
[1773234196523,2.57762583,85.18,85.129,6.28518158]
[1773234197322,10.565,85.177,85.13,10.571]
[1773234197521,10.565,85.177,85.131,6.28518158]
[1773234198414,10.565,85.177,85.135,6.29021448]
[1773234200619,10.565,85.177,85.102,21.149]
[1773234200620,10.565,85.177,85.139,6.28949183]
[1773234201123,2.9341315,85.203,85.139,6.28949183]
[1773234201124,10.564,85.184,85.139,6.28949183]
[1773234201322,2.57762583,85.19,85.139,6.28949183]
[1773234201619,2.57762583,85.17,85.111,6.29036292]
[1773234202119,2.57762583,85.17,85.11,2.57762583]
[1773234202120,10.567,85.166,85.127,6.29036292]
[1773234202625,2.57762583,85.18,85.129,6.29036292]
[1773234203216,2.57762583,85.18,85.131,6.29036292]
[1773234203420,10.566,85.174,85.135,6.29036292]
[1773234205120,2.93418797,85.199,85.135,6.29036292]
[1773234205322,2.57762583,85.18,85.135,6.29036292]
[1773234205719,10.566,85.17,85.135,6.29036292]
[1773234210329,10.565,85.177,85.137,6.27758403]
[1773234211431,10.565,85.177,85.13,2.57762583]
[1773234211432,10.565,85.177,85.14,6.27758403]
[1773234212428,2.57762583,85.17,85.129,6.28165029]
[1773234213327,10.567,85.16,85.129,6.28165029]
[1773234213628,2.57762583,85.14,85.101,6.28165029]
[1773234213833,2.57762583,85.13,85.071,6.25943683]
[1773234214729,2.57762583,85.13,85.07,2.57762583]
[1773234214730,2.57762583,85.13,85.091,6.25943683]
[1773234215434,13.14762583,85.14,85.091,6.25943683]
[1773234215628,13.14762583,85.14,85.101,16.82206194]
[1773234215833,2.57762583,85.14,85.102,6.24706194]
[1773234216832,2.57762583,85.13,85.092,10.576]
[1773234217534,2.57762583,85.13,85.093,6.24706194]
[1773234217724,2.57762583,85.13,85.094,10.575]
[1773234218328,2.57762583,85.13,85.062,21.159]
[1773234218329,13.14762583,85.14,85.097,6.28394357]
[1773234219438,13.14762583,85.14,85.099,10.575]
[1773234219640,2.57762583,85.13,85.085,6.28660817]
[1773234220438,2.57762583,85.13,85.088,16.86260817]
[1773234220640,2.57762583,85.13,85.07,2.57762583]
[1773234220641,2.57762583,85.13,85.089,6.28660817]
[1773234221035,2.57762583,85.15,85.113,6.28660817]
[1773234221236,2.57762583,85.16,85.113,6.28660817]
[1773234221443,2.57762583,85.17,85.113,6.28660817]
[1773234221743,2.57762583,85.18,85.127,6.26831376]
[1773234222039,2.93443164,85.179,85.127,6.26831376]
[1773234222238,2.57762583,85.18,85.127,6.26831376]
[1773234222239,2.93443164,85.178,85.127,6.26831376]
[1773234222440,2.57762583,85.18,85.127,6.26831376]
[1773234222738,10.565,85.179,85.138,6.26831376]
[1773234224336,10.565,85.179,85.14,10.57]
[1773234224540,2.93438346,85.178,85.14,16.74374823]
[1773234224739,10.565,85.179,85.14,16.74374823]
[1773234225040,2.9343443,85.178,85.142,16.85398528]
[1773234225241,10.565,85.179,85.142,16.85398528]
[1773234225440,10.565,85.179,85.143,6.28398528]
[1773234225937,2.57762583,85.18,85.144,10.569]
[1773234226937,2.57762583,85.18,85.137,10.57]
[1773234227841,2.57762583,85.18,85.14,6.12693903]
[1773234228246,10.565,85.179,85.14,6.12693903]
[1773234230643,2.57762583,85.16,85.125,10.572]
[1773234230844,2.57762583,85.17,85.126,6.12611014]
[1773234231043,2.57762583,85.17,85.13,6.12611014]
[1773234231537,10.566,85.168,85.13,6.12611014]
[1773234232246,2.57762583,85.15,85.114,6.09059954]
[1773234232842,2.46738878,85.15,85.114,6.09059954]
[1773234233044,2.46738878,85.15,85.116,10.573]
[1773234233243,2.57762583,85.16,85.117,6.09059954]
[1773234233740,10.568,85.158,85.12,6.09657621]
[1773234234640,10.568,85.158,85.1,2.57762583]
[1773234234641,2.57762583,85.15,85.111,10.573]
[1773234234942,2.57762583,85.12,85.081,6.09657621]
[1773234236442,2.57762583,85.12,85.082,6.09720558]
[1773234237143,10.572,85.127,85.082,6.09720558]
[1773234237344,10.572,85.127,85.085,6.09720558]
[1773234237845,2.57607417,85.13,85.085,6.09720558]
[1773234239344,2.57607417,85.13,85.087,6.10922329]
[1773234239939,2.57607417,85.13,85.09,6.10525228]
[1773234240336,2.57607417,85.14,85.09,6.10525228]
[1773234241144,2.57607417,85.14,85.099,6.10525228]
[1773234241339,21.131,85.175,85.099,6.10525228]
[1773234241340,2.57607417,85.15,85.099,6.10525228]
[1773234242046,2.57607417,85.15,85.107,6.109125]
[1773234243341,10.569,85.149,85.107,6.109125]
[1773234243545,10.569,85.149,85.109,6.109125]
[1773234244242,2.93550394,85.148,85.096,6.09881944]
[1773234244548,2.93550394,85.148,85.035,28.98276136]
[1773234244549,2.57607417,85.16,85.101,6.09881944]
[1773234245240,2.57607417,85.15,85.113,6.09881944]
[1773234246348,10.569,85.149,85.113,6.09881944]
[1773234246742,2.57607417,85.15,85.113,6.09881944]
[1773234247750,8.79140338,85.178,85.099,10.575]
[1773234247751,2.57607417,85.14,85.1,6.06769456]
[1773234248050,2.57607417,85.15,85.1,6.06769456]
[1773234248243,2.93560611,85.149,85.104,6.06769456]
[1773234248447,10.93212822,85.186,85.039,35.25]
[1773234248448,2.57607417,85.17,85.111,6.06769456]
[1773234249446,10.566,85.169,85.127,6.06769456]
[1773234251957,2.93481377,85.168,85.127,6.06769456]
[1773234252157,10.566,85.169,85.127,6.06769456]
[1773234252360,10.567,85.167,85.127,6.06769456]
[1773234252752,2.57607417,85.16,85.127,6.06769456]
[1773234254356,10.568,85.158,85.127,6.06769456]
[1773234256454,2.57607417,85.18,85.127,6.06769456]
[1773234256658,2.57607417,85.17,85.127,6.06769456]
[1773234257460,10.566,85.169,85.13,6.05100631]
[1773234257957,10.568,85.157,85.118,6.04815233]
[1773234259255,2.57607417,85.16,85.12,6.04815233]
[1773234259455,10.567,85.164,85.12,6.04815233]
[1773234259656,2.57607417,85.16,85.12,6.04815233]
[1773234260459,2.57607417,85.16,85.125,10.572]
[1773234260655,10.567,85.164,85.126,6.05024838]
[1773234262960,2.57607417,85.16,85.126,6.05024838]
[1773234265564,2.57607417,85.15,85.11,6.04034445]
[1773234265869,2.57607417,85.16,85.11,6.04034445]
[1773234266064,10.568,85.158,85.119,6.03898294]
[1773234267571,10.568,85.158,85.122,6.03898294]
[1773234269261,10.568,85.151,85.122,6.03898294]
[1773234269461,2.57607417,85.15,85.122,6.03898294]
[1773234269667,2.57607417,85.16,85.122,6.03898294]
[1773234270362,10.568,85.157,85.122,6.03898294]
[1773234274875,10.568,85.155,85.122,6.03898294]
[1773234275669,2.57607417,85.17,85.129,6.0333259]
[1773234275870,2.57607417,85.18,85.129,6.0333259]
[1773234276874,10.564,85.187,85.146,6.0333259]
[1773234277069,2.93380386,85.186,85.146,6.0333259]
[1773234277369,8.77438388,85.205,85.146,6.0333259]
[1773234277668,2.57607417,85.2,85.146,6.0333259]
[1773234278170,10.563,85.199,85.158,6.02857781]
[1773234278568,2.57607417,85.2,85.162,6.02857781]
[1773234280269,10.564,85.189,85.162,6.02857781]
[1773234282479,2.57607417,85.21,85.162,6.02857781]
[1773234282675,2.93359982,85.209,85.162,6.02857781]
[1773234282877,2.93359982,85.208,85.162,6.02857781]
[1773234283075,2.93359982,85.207,85.162,6.02857781]
[1773234283271,2.57607417,85.2,85.162,6.02857781]
[1773234287981,2.57607417,85.21,85.164,6.02294736]
[1773234289282,10.561,85.209,85.167,6.02294736]
[1773234289785,10.561,85.209,85.171,6.02039566]
[1773234291282,21.115,85.243,85.171,6.02039566]
[1773234291283,10.56,85.216,85.171,6.02039566]
[1773234291487,2.57607417,85.23,85.171,6.02039566]
[1773234291790,2.93277044,85.229,85.171,6.02039566]
[1773234291988,2.93277044,85.228,85.171,6.02039566]
[1773234292187,2.93277044,85.227,85.171,6.02039566]
[1773234292489,2.93277044,85.226,85.186,6.02004953]
[1773234292786,2.93277044,85.225,85.186,6.02004953]
[1773234292986,2.93277044,85.224,85.186,6.02004953]
[1773234293186,2.57607417,85.23,85.186,6.02004953]
[1773234293379,2.93276772,85.229,85.186,6.02004953]
[1773234293582,2.93276772,85.228,85.186,6.02004953]
[1773234293782,2.93276772,85.227,85.186,6.02004953]
[1773234293978,2.93276772,85.226,85.186,6.02004953]
[1773234294183,2.93276772,85.225,85.186,6.02004953]
[1773234294385,10.56,85.223,85.186,6.02004953]
[1773234298483,8.77438388,85.26,85.139,42.5751063]
[1773234298484,10.562,85.203,85.162,6.02832094]
[1773234298691,2.57607417,85.21,85.162,6.02832094]
[1773234299387,2.57607417,85.22,85.162,6.02832094]
[1773234299691,2.57025535,85.22,85.171,6.02832094]
[1773234299884,2.57025535,85.22,85.173,6.07493034]
[1773234300290,10.562,85.206,85.173,6.07493034]
[1773234300991,21.114,85.244,85.124,21.144]
[1773234300992,2.57025535,85.2,85.141,6.07493034]
[1773234301192,2.93353904,85.231,85.152,6.07493034]
[1773234301383,2.57025535,85.21,85.152,6.07493034]
[1773234302092,2.57025535,85.21,85.173,6.05008037]
[1773234302284,2.57025535,85.22,85.173,6.05008037]
[1773234302488,10.56,85.219,85.177,6.05008037]
[1773234308301,2.57025535,85.21,85.169,10.566]
[1773234308697,2.57025535,85.21,85.17,6.03930172]
[1773234309095,2.57025535,85.23,85.172,6.03930172]
[1773234309393,2.93220546,85.249,85.2,2.57025535]
[1773234309591,2.57025535,85.27,85.211,6.07029439]
[1773234309796,2.93148448,85.269,85.211,6.07029439]
[1773234309994,2.93148448,85.268,85.211,6.07029439]
[1773234310199,2.57025535,85.27,85.214,6.07029439]